Cogmind - Beta 13 @@@ ROGUE MODE // 2024.04.08 @ 19:56:58 Player: SnowyImp Result: Destroyed by Y-45 Defender with Heavy Assault Rifle Performance ------------- Evolutions (2) 1000 Regions Visited (4) 800 Robots Destroyed (14) 70 Value Destroyed (362) 362 Prototype IDs (3) 60 Alien Tech Used (0) 0 Bonus (0) 0 TOTAL SCORE: 2292 Bonus ------- None Cogmind --------- Core Integrity 0/550 Matter 90/300 Energy 268/280 System Corruption 0% Temperature Cool (0) Movement Flying (40) Location -8/Storage Parts ------- > --- POWER (1) -------- Heavy Ion Engine > --- PROPULSION (4) --- Flight Unit > --- UTILITY (2) ------ Advanced Weight Redist. System Melee Analysis Suite > --- WEAPON (4) ------- Improved EM Shotgun > --- INVENTORY (5) ---- Light Nuclear Core Improved EM Shotgun Improved EM Shotgun Improved EM Shotgun Peak State ------------ > --- POWER ------------ (None) > --- PROPULSION ------- Flight Unit Improved Flight Unit > --- UTILITY ---------- Improved Sensor Array > --- WEAPON ----------- Improved EM Shotgun Improved EM Shotgun Improved EM Shotgun > --- INVENTORY -------- Light Nuclear Core Improved EM Shotgun Improved EM Shotgun Improved EM Shotgun Improved EM Shotgun [Rating: 17] Favorites ----------- Power Heavy Ion Engine Engine Heavy Ion Engine Propulsion Flight Unit Leg Aluminum Leg Wheel Compact Wheel Hover Unit Improved Hover Unit Flight Unit Flight Unit Utility Melee Analysis Suite Device Sensor Array Processor Melee Analysis Suite Weapon Assault Rifle Energy Gun Improved EM Shotgun Ballistic Gun Assault Rifle Slashing Weapon Katana Build | -11 -10 -9 -8 -8 ------- Run | Yrd Mat Mat Mat Sto Slots Evolved 4 | . . 2 2 . Power . | . . . . . Propulsion 2 | . . 2 . . Utility . | . . . . . Weapon 2 | . . . 2 . Parts Attached 31 | 4 2 13 3 9 Power 4 | 1 . 2 . 1 Engine 4 | 1 . 2 . 1 Core . | . . . . . Reactor . | . . . . . Propulsion 14 | 2 2 7 . 3 Treads . | . . . . . Leg 2 | 2 . . . . Wheel 1 | . . 1 . . Hover 1 | . . 1 . . Flight 10 | . 2 5 . 3 Utility 4 | . . 1 1 2 Device 3 | . . 1 1 1 Storage . | . . . . . Processor 1 | . . . . 1 Hackware . | . . . . . Protection . | . . . . . Artifact . | . . . . . Weapon 9 | 1 . 3 2 3 Energy Gun 5 | . . 2 2 1 Energy Cannon . | . . . . . Ballistic Gun 2 | 1 . 1 . . Ballistic Cannon . | . . . . . Launcher . | . . . . . Special Weapon . | . . . . . Impact Weapon . | . . . . . Slashing Weapon 2 | . . . . 2 Piercing Weapon . | . . . . . Special Melee Weapon . | . . . . . Unidentified Prototypes 3 | . . 3 . . Parts Lost 13 | . . 6 1 6 Power . | . . . . . Propulsion 8 | . . 4 1 3 Utility 1 | . . 1 . . Weapon 4 | . . 1 . 3 Highest Loss Streak 5 | . . 5 1 3 To Critical Strikes . | . . . . . Average Slot Usage (%) 43 | . 57 44 40 31 Engine 6 | . 14 6 . 3 Leg 5 | . 22 . . . Wheel 1 | . . 2 . . Flight 12 | . 5 20 16 6 Device 2 | . . 4 2 3 Processor 1 | . . . . 6 Energy Gun 4 | . . 2 22 . Ballistic Gun 5 | . 14 7 . . Slashing Weapon 2 | . . . . 11 Naked Turns 4 | . . 4 . . Heaviest Build 11 | 7 7 11 9 10 Greatest Support 20 | 20 20 16 9 13 Greatest Overweight (x) 1 | . . . . 1 Average Overweight (x) . | . . . . . Largest Inventory Capacity 5 | 5 5 5 5 5 Average Capacity 5 | 5 5 5 5 5 Most Carried 5 | 2 5 5 5 5 Average Carried 3 | 1 2 4 4 4 Final Capacity 5 | 5 5 5 5 5 Final Carried 5 | 2 5 5 5 4 Class Distribution -------------------- 89% | Mutant 10% | Gunner Dominant Class ---------------- Mutant | -10/Materials Mutant | -9/Materials Gunner | -8/Materials Mutant | -8/Storage Resources | -11 -10 -9 -8 -8 ----------- Run | Yrd Mat Mat Mat Sto Matter Collected 332 | 227 46 31 . 28 Remotely . | . . . . . Salvage Created 476 | . 102 31 . 343 Parts 19 | . 8 5 . 6 Haulers Intercepted . | . . . . . Recyclers Shooed 2 | . 2 . . . Parts Field Recycled . | . . . . . Retrieved Matter . | . . . . . Parts Self-Destructed . | . . . . . Prevented . | . . . . . Kills | -11 -10 -9 -8 -8 ------- Run | Yrd Mat Mat Mat Sto Combat Hostiles Destroyed 13 | . 3 2 . 8 Melee 8 | . . . . 8 Guns 5 | . 3 2 . . Classes Destroyed 4 | . 2 . . 2 Recycler 1 | . 1 . . . Swarmer 7 | . 3 2 . 2 Grunt 3 | . . . . 3 Sentry 3 | . . . . 3 Best Kill Streak 8 | . 4 2 . 8 Combat Bots Only 8 | . 3 2 . 8 Max Kills in Single Turn 1 | . 1 1 . 1 Gunslinging . | . . . . . Exploded . | . . . . . Melee 1 | . . . . 1 Uniques/NPCs Destroyed . | . . . . . Combat | -11 -10 -9 -8 -8 -------- Run | Yrd Mat Mat Mat Sto Hostile Shots Fired 214 | . 21 64 26 103 Missed 76 | . 6 22 12 36 Damage Taken 1875 | . 122 710 206 837 Core 968 | . 32 378 60 498 Absorbed by Shields . | . . . . . Core Remaining (%) 64 | 100 87 5 . . Volleys Fired 35 | 1 16 18 . . Largest 2 | 1 1 2 . . Hottest 90 | 20 20 90 . . Shots Fired 37 | 1 16 20 . . Gun 37 | 1 16 20 . . Cannon . | . . . . . Launcher . | . . . . . Special . | . . . . . Kinetic 33 | 1 16 16 . . Thermal . | . . . . . Explosive . | . . . . . Electromagnetic 4 | . . 4 . . Robot Hit Streak 4 | . 4 4 . . Robot Miss Streak 3 | . 1 3 . . Penetration Max . | . . . . . Secondary Targets . | . . . . . Shots Hit Robots 49 | . 12 14 . 23 Core Hits 17 | . 5 4 . 8 Critical Kills . | . . . . . Critical Parts Destroyed 1 | . 1 . . . Critical Strikes 4 | . 1 . . 3 Destroy 1 | . 1 . . . Sever 3 | . . . . 3 Melee Attacks 30 | . . . . 30 Impact . | . . . . . Slashing 30 | . . . . 30 Piercing . | . . . . . Sneak Attacks 1 | . . . . 1 Combat Hostiles . | . . . . . Follow-up Attacks . | . . . . . Damage Inflicted 1147 | 14 166 181 . 786 Guns 361 | 14 166 181 . . Cannons . | . . . . . Explosions . | . . . . . Melee 786 | . . . . 786 Ramming . | . . . . . Kinetic 314 | 14 166 134 . . Thermal . | . . . . . Explosive . | . . . . . Electromagnetic 47 | . . 47 . . Impact . | . . . . . Slashing 786 | . . . . 786 Piercing . | . . . . . Highest Corruption . | . . . . . Average Corruption . | . . . . . Corruption Purged . | . . . . . Corruption Blocked . | . . . . . Overload Shots . | . . . . . Overflow Damage 81 | . . . . 81 Projectiles . | . . . . . Explosions . | . . . . . Melee 81 | . . . . 81 Knockbacks . | . . . . . Impact . | . . . . . Kinetic . | . . . . . Secondary . | . . . . . Self-Inflicted Damage . | . . . . . Shots . | . . . . . Rammed . | . . . . . Targets Rammed . | . . . . . Kicked . | . . . . . Crushed . | . . . . . Highest Temperature 30 | . . 30 . 3 Average Temperature 14 | . . 15 . 3 Received Heat Transfer 528 | . 6 126 90 306 Siege Activations . | . . . . . Robots Corrupted . | . . . . . Combat Hostiles . | . . . . . Parts Fried . | . . . . . Impact Corruptions . | . . . . . Robots Melted . | . . . . . Combat Hostiles . | . . . . . Parts Melted . | . . . . . Heat Transferred . | . . . . . Parts Sabotaged . | . . . . . Parts Stolen . | . . . . . Parts Stripped . | . . . . . Power Chain Reactions . | . . . . . Alert | -11 -10 -9 -8 -8 ------- Run | Yrd Mat Mat Mat Sto Peak Influence 277 | . 95 229 124 277 Initial 96 | . . 39 96 52 Average 88 | . 49 109 101 115 Maximum Alert Level 1 | . . 1 . 1 Low Security (%) 93 | 100 100 90 100 85 Level 1 6 | . . 9 . 14 Level 2 . | . . . . . Level 3 . | . . . . . Level 4 . | . . . . . Level 5 . | . . . . . High Security . | . . . . . Max Security . | . . . . . Squads Dispatched 1 | . . 1 . . Investigation 1 | . . 1 . . Extermination . | . . . . . Reinforcement . | . . . . . Assault . | . . . . . Garrison . | . . . . . Intercept . | . . . . . Searches Triggered . | . . . . . Construction Impeded . | . . . . . Haulers Reinforced . | . . . . . Active Scanning Responses . | . . . . . Cargo Convoy Interrupts . | . . . . . Stealth | -11 -10 -9 -8 -8 --------- Run | Yrd Mat Mat Mat Sto Distress Signals 1 | . 1 . . . Communications Jammed . | . . . . . Distress Signals . | . . . . . Times Spotted 53 | . 8 21 12 12 Peak Tracking Total 13 | . 5 11 13 12 Tactical Retreats 5 | . . 4 . 1 Traps | -11 -10 -9 -8 -8 ------- Run | Yrd Mat Mat Mat Sto Traps Triggered . | . . . . . Indirectly . | . . . . . Trap Hack Attempts . | . . . . . Triggered . | . . . . . Disarmed . | . . . . . Reprogrammed . | . . . . . Reused . | . . . . . Traps Extracted . | . . . . . Installed . | . . . . . Triggered . | . . . . . Machines | -11 -10 -9 -8 -8 ---------- Run | Yrd Mat Mat Mat Sto Machines Disabled 1 | . . . . 1 Max in Single Turn 1 | . . . . 1 Machines Repaired . | . . . . . Machines Dismantled . | . . . . . Machines Sabotaged . | . . . . . Overloaded Fab Kills . | . . . . . Hacking | -11 -10 -9 -8 -8 --------- Run | Yrd Mat Mat Mat Sto Machines Accessed 8 | . 1 5 2 . Terminals 8 | . 1 5 2 . Fabricators . | . . . . . Repair Stations . | . . . . . Recycling Units . | . . . . . Scanalyzers . | . . . . . Garrison Access . | . . . . . Total Hacks 21 | . 3 11 7 . Successful 5 | . 1 2 2 . Failed 16 | . 2 9 5 . Catastrophic 4 | . . 4 . . Database Lockouts . | . . . . . Manual 21 | . 3 11 7 . Terminals 21 | . 3 11 7 . Fabricators . | . . . . . Repair Stations . | . . . . . Recycling Units . | . . . . . Scanalyzers . | . . . . . Garrison Access . | . . . . . Terminal Hacks 2 | . . 1 1 . Branch Access Points 2 | . . 1 1 . Fabricator Hacks . | . . . . . Repair Station Hacks . | . . . . . Recycling Unit Hacks . | . . . . . Scanalyzer . | . . . . . Garrison Access Hacks . | . . . . . Unauthorized Hacks 3 | . 1 1 1 . Terminals 3 | . 1 1 1 . Botnet 3 | . 1 1 1 . Fabricators . | . . . . . Repair Stations . | . . . . . Recycling Units . | . . . . . Scanalyzers . | . . . . . Garrison Access . | . . . . . Data Cores Recovered . | . . . . . Used . | . . . . . Hacking Detections 8 | . 1 5 2 . Full Trace Events 1 | . . 1 . . Feedback Events . | . . . . . Feedback Blocked . | . . . . . Robot Schematics Acquired . | . . . . . Robots Built . | . . . . . Authchips . | . . . . . Time . | . . . . . Total Robot Build Rating . | . . . . . Part Schematics Acquired . | . . . . . Parts Built . | . . . . . Authchips . | . . . . . Time . | . . . . . Total Part Build Rating . | . . . . . Parts Repaired . | . . . . . Time . | . . . . . Parts Recycled . | . . . . . Recycled Matter . | . . . . . Retrieved Matter . | . . . . . Retrieved Components . | . . . . . Parts Scanalyzed . | . . . . . Part Schematics Acquired . | . . . . . Parts Damaged . | . . . . . Bothacking | -11 -10 -9 -8 -8 ------------ Run | Yrd Mat Mat Mat Sto Used RIF Installer . | . . . . . Robots Hacked . | . . . . . Non-combat . | . . . . . Combat . | . . . . . Robot Hacks Applied . | . . . . . Relay Couplers Released . | . . . . . Fabnet Peak Effective % . | . . . . . Robots Rewired . | . . . . . Allies Hacked . | . . . . . Hacks Repelled . | . . . . . Allies | -11 -10 -9 -8 -8 -------- Run | Yrd Mat Mat Mat Sto Total Allies . | . . . . . Largest Group . | . . . . . Highest-Rated Group . | . . . . . Highest-Rated Ally . | . . . . . Total Orders . | . . . . . Ally Attacks . | . . . . . Total Damage . | . . . . . Kills . | . . . . . Allies Corrupted . | . . . . . Allies Melted . | . . . . . Intel | -11 -10 -9 -8 -8 ------- Run | Yrd Mat Mat Mat Sto Robot Analysis Total . | . . . . . Derelict Logs Recovered . | . . . . . Drone Launches . | . . . . . Drone Recoveries . | . . . . . Exploration | -11 -10 -9 -8 -8 ------------- Run | Yrd Mat Mat Mat Sto Turns Passed 690 | 54 146 238 82 170 Spaces Moved 877 | 38 140 361 198 140 Core 45 | 1 . 4 . 40 Treads . | . . . . . Legs 103 | 37 66 . . . Wheels 51 | . . 51 . . Hover . | . . . . . Flight 678 | . 74 306 198 100 Fastest Speed 34 | 50 37 34 37 37 Average Speed 53 | 118 76 45 37 54 Slowest Speed 120 | 120 120 100 40 100 Overloaded Moves . | . . . . . Propulsion Burnouts . | . . . . . Robots Hopped 22 | . . 12 7 3 Cave-ins Triggered . | . . . . . Exploration Rate (%) 28 | 3 40 48 28 25 Regions Visited 4 Branch Regions 1 Pre-discovered Areas . | . . . . . Known Exits Taken 1 | . . . 1 . Unknown Exits Taken 3 | 1 1 1 . . Scrap Searched . | . . . . . Spaces Dug . | . . . . . Terrain Destroyed . | . . . . . Melee . | . . . . . Projectile . | . . . . . AOE . | . . . . . Terrain Rammed . | . . . . . Walls Destroyed . | . . . . . Machines Disabled . | . . . . . Actions | -11 -10 -9 -8 -8 --------- Run | Yrd Mat Mat Mat Sto Total 988 | 44 162 401 199 182 Wait 9 | . . 4 . 5 Move 832 | 37 139 338 183 135 Hop 19 | . . 10 7 2 Pick Up 18 | 2 4 9 2 1 Fast Attach 22 | 4 . 10 1 7 Attach 7 | . . 3 2 2 Detach . | . . . . . Swap 2 | . 2 . . . Drop 14 | . 1 9 4 . Fire 35 | 1 16 18 . . Melee 30 | . . . . 30 Ram . | . . . . . Kick . | . . . . . Crush . | . . . . . Escape Stasis . | . . . . . Rewire . | . . . . . Trap . | . . . . . Miscellaneous . | . . . . . Route ------- -11/Scrapyard -10/Materials (discovered 3 exits: *Mat / [*Min x2]) -9/Materials (discovered 2 exits: *Mat / Min) -8/Materials -8/Storage History --------- Turn | Location | Event 6 | -11/Scrapyard | Discovered new exit (range 15) 55 | -11/Scrapyard | Entered Materials 177 | -10/Materials | Discovered new exit (range 6) 190 | -10/Materials | Discovered new exit (range 13) 198 | -10/Materials | Discovered new exit (range 9) 201 | -10/Materials | Entered another Materials area 201 | -9/Materials | Evolved 2 slots: Propulsion x2 303 | -9/Materials | Build established: Mutant 350 | -9/Materials | Core integrity fell below 50% 361 | -9/Materials | Core integrity fell below 20% 380 | -9/Materials | Lost 5 parts (3n1u1w) 431 | -9/Materials | Identified exit to Mines 433 | -9/Materials | Discovered new exit (range 16) 439 | -9/Materials | Entered another Materials area 439 | -8/Materials | Evolved 2 slots: Weapon x2 507 | -8/Materials | Identified exit to Storage 521 | -8/Materials | Entered Storage 577 | -8/Storage | Lost 3 parts (2n1w) 600 | -8/Storage | Core integrity fell below 50% 656 | -8/Storage | Lost 3 parts (2n1w) 657 | -8/Storage | Core integrity fell below 20% 691 | -8/Storage | Destroyed by Y-45 Defender with Heavy Assault Rifle Last Messages --------------- 00624_ Acquired 19 matter. 00625_ Flight Unit destroyed. 00631_ S-10 Pest destroyed. 00632_ K-01 Serf collects debris. 00634_ Sneak attack on K-01 Serf. 00634_ Destroyed Sml. Matter Pod. 00634_ Destroyed Lgt. Ion Engine. 00638_ Acquired Flight Unit. 00645_ G-47 Trooper destroyed. 00649_ Critical hit (Burn: +37). 00652_ G-47 Trooper destroyed. 00655_ Y-45 Defender destroyed. 00660_ G-47 Trooper Aluminum Leg severed. 00667_ G-47 Trooper destroyed. 00670_ Y-45 Defender Lgt. Armor Plating severed. 00672_ Y-45 Defender destroyed. 00675_ Y-45 Defender Lgt. Armor Plating severed. 00680_ Y-45 Defender destroyed. 00688_ Katana destroyed. 00690_ Acquired Imp. EM Shotgun. Map ----- +----------------------------------------------------+ | | | | | | | | | | | | | | | | | | | | | | | | | | | | | | | | | | | | | | | ?????????????????????????????????????????????????? | | ?????????????????????##???????############???????? | | ????????????????????? ???????# #???????? | | ????????????????????? ???????# #???????? | | ????????????????????# ?""""??# #???????? | | ????????????????????# ?"[["?## ########???????? | | ????????????????????# """@%" ## #??????????????? | | ?#######????????????# "YY""" ## #??????????????? | | ? !#????????###?#[=g["" ## #??????????????? | | "" #???###### ###%"""" ## #??????????????? | | "" #???# # ## #??????????????? | | "" ????# = #/###+##### #??????????????? | | "" ????# # #??????????????? | | ?" ?????# """ / #??????????????? | | ? ?????# """ # #??????????????? | | ?? ??????# """ ## ############??????????????? | | ?? ??????# """ ## #?????????????????????????? | | ?##+######## """ ## #?????????????????????????? | | ?# / ## #?????????????????????????? | | ## ##+#########+####+#######???????????????????? | | # # + #???????????????????? | | ## # # # ] #???????????????????? | | ?# / ! + # #???????????????????? | | ?# # !! # # """ #???????????????????? | | ?# # # + """ #???????????????????? | | ?# # # # """ #???????????????????? | | ?# # # # #???????????????????? | | ?# # # # #???????????????????? | | ? ## ######## ### #######???????????????????? | | ####??????# #?###?????????????????????????? | | #?????????# #?????????????????????????????? | +----------------------------------------------------+ Best States ------------- Heat Dissipation 31 Energy Generation 14 Energy Capacity 280 Matter Stores 297 Matter Capacity 300 Sight Range 16 Robot Scan Range 14 Terrain Scan Density 10 Additional Mass Support 9 Evasion (%) 63 Melee Accuracy 5 Item Schematics ----------------- None Robot Schematics ------------------ None Fabricated ------------ Nothing Alien Tech Used ----------------- None Achievements -------------- None Challenges ------------ None Game ------ Seed MiningTacticalCasing Manual? 0 Play Time 00:15:32 Cumulative 28.8 hours Start 2024.04.08 @ 19:44:16 End 2024.04.08 @ 19:56:58 Sessions 1 Manual Loads 0 Difficulty Rogue Special Mode None Game No. 41 Rogue 41 Adventurer 0 Explorer 0 Win Type - Total 0 Types 0/0/0/0/0/0/0/0/0 Lore% 13 Gallery% 30 Achievement% 24 Wizard Run 0 Options --------- Layout 1 ASCII 0 Keyboard 0 Movement Numpad Keybinds 0 Fullscreen 1 Font 24/Crisp Map View 50x35 Zoom Use 0% Tactical HUD 1 Map Filters NONE Filters NONE Steam 1 RUN: 2fee7a47-d2f8-4729-8ff8-49ccf80ca48b